bitfinex/quotes_SOLUSD_20251128
["timestamp","ask_amount","ask_price","bid_price","bid_amount"]
[1764302408830,0.72,139.79,139.75,3.44232813]
[1764302409132,0.72,139.79,139.77,0.7]
[1764302409825,11.01317713,139.8,139.77,0.7]
[1764302421254,10.29317713,139.8,139.77,0.7]
[1764302421439,0.72,139.79,139.77,0.7]
[1764302422346,0.72,139.79,139.77,0.72]
[1764302422551,3.14,139.8,139.77,0.72]
[1764302422860,3.86,139.8,139.77,0.72]
[1764302423232,11.01311655,139.8,139.77,0.72]
[1764302428662,10.29311655,139.8,139.77,0.72]
[1764302429161,11.01311655,139.8,139.77,0.72]
[1764302434263,3.14,139.8,139.77,10.0777818]
[1764302434475,0.72,139.83,139.79,2.20363278]
[1764302434647,3.14,139.82,139.79,2.20363278]
[1764302434966,3.14,139.82,139.8,0.72]
[1764302435543,3.14,139.82,139.8,7.87299979]
[1764302435867,3.14,139.82,139.81,0.72]
[1764302436356,3.14,139.82,139.81,2.92363278]
[1764302436746,3.14,139.82,139.8,7.15299979]
[1764302436961,3.14,139.82,139.81,0.72]
[1764302438144,3.14,139.82,139.78,17.88395704]
[1764302438347,2.20363278,139.8,139.76,0.72]
[1764302438546,3.14,139.79,139.76,0.72]
[1764302438747,3.86,139.79,139.76,0.72]
[1764302439142,3.14,139.79,139.76,0.72]
[1764302439963,3.14,139.79,139.76,7.87487244]
[1764302440164,3.14,139.79,139.77,0.72]
[1764302444077,18.51249678,139.82,139.77,0.72]
[1764302444078,16.308864,139.81,139.78,2.20363278]
[1764302444275,3.14,139.82,139.79,2.20363278]
[1764302444479,19.448864,139.82,139.79,2.20363278]
[1764302444669,19.448864,139.82,139.8,0.72]
[1764302447575,3.14,139.82,139.8,10.07657588]
[1764302448089,3.14,139.82,139.81,0.72]
[1764302450672,3.14,139.82,139.8,0.72]
[1764302452658,3.14,139.82,139.8,2.92363278]
[1764302454089,3.14,139.82,139.8,0.72]
[1764302454270,3.14,139.82,139.8,2.92363278]
[1764302456066,3.85,139.82,139.8,2.92363278]
[1764302456480,3.85,139.82,139.8,0.72]
[1764302456658,3.14,139.82,139.79,9.35700934]
[1764302456866,0.71,139.87,139.81,2.20363278]
[1764302457080,3.14,139.86,139.83,2.20363278]
[1764302457283,3.14,139.86,139.82,2.92363278]
[1764302457472,3.85,139.86,139.82,2.92363278]
[1764302457667,3.85,139.86,139.83,0.72]
[1764302457876,0.71,139.85,139.83,0.72]
[1764302458982,7.86069237,139.85,139.81,0.72]
[1764302459193,10.06432515,139.85,139.8,10.0767086]
[1764302459491,0.71,139.84,139.8,9.3567086]
[1764302459663,0.71,139.84,139.81,0.72]
[1764302460792,7.86111524,139.84,139.8,7.15307582]
[1764302461184,0.71,139.83,139.8,7.87307582]
[1764302461373,3.85,139.83,139.8,7.87307582]
[1764302461796,3.14,139.83,139.77,43.00466261]
[1764302461982,2.91363278,139.82,139.76,7.87470758]
[1764302462284,2.91363278,139.82,139.76,10.07834036]
[1764302462484,0.71,139.81,139.76,9.35834036]
[1764302462687,3.14,139.8,139.77,0.72]
[1764302463092,3.85,139.8,139.77,0.72]
[1764302463893,0.71,139.79,139.76,10.07834036]
[1764302464073,0.71,139.79,139.77,0.72]
[1764302464577,3.85,139.8,139.77,0.72]
[1764302465993,3.14,139.8,139.77,7.87447647]
[1764302466483,3.14,139.8,139.78,0.72]
[1764302467077,3.14,139.8,139.78,10.07760529]
[1764302467790,3.14,139.8,139.78,7.87397251]
[1764302468594,3.14,139.8,139.79,0.72]
[1764302469484,3.14,139.8,139.78,9.35760529]
[1764302469686,3.14,139.8,139.78,7.87397251]
[1764302471398,3.14,139.8,139.78,7.15397251]
[1764302471620,3.14,139.8,139.79,0.68]
[1764302473897,3.14,139.8,139.78,7.15397251]
[1764302474208,3.14,139.8,139.78,7.83397251]
[1764302477115,3.14,139.8,139.77,7.15441118]
[1764302477301,3.85,139.8,139.77,7.86441118]
[1764302477706,3.85,139.8,139.77,7.15441118]
[1764302477900,3.85,139.8,139.78,0.71]
[1764302478907,3.85,139.8,139.78,7.86403383]
[1764302479214,3.85,139.8,139.77,7.15445048]
[1764302479389,3.85,139.8,139.77,7.86445048]
[1764302479790,3.85,139.8,139.78,0.71]
[1764302480790,3.14,139.8,139.78,0.71]
[1764302481319,3.14,139.8,139.78,7.86389759]
[1764302481621,3.14,139.82,139.78,10.06753037]
[1764302481789,3.85,139.82,139.79,0.71]
[1764302482485,3.85,139.82,139.79,7.86339386]
[1764302483326,3.14,139.82,139.8,0.71]
[1764302483903,3.85,139.82,139.8,0.71]
[1764302484319,3.85,139.82,139.79,7.86339386]
[1764302491941,11.00231728,139.82,139.79,0.71]
[1764302493938,10.29231728,139.82,139.78,3.44194377]
[1764302494170,10.29231728,139.82,139.74,11.94994492]
[1764302494171,0.71,139.81,139.77,4.15194377]
[1764302495142,7.86257733,139.81,139.77,10.59624344]
[1764302495345,7.86257733,139.81,139.78,0.71]
[1764302498647,0.71,139.8,139.78,0.71]
[1764302501534,7.87257733,139.81,139.78,0.71]
[1764302504164,3.44194377,139.79,139.73,0.68]
[1764302504338,3.14,139.78,139.73,0.68]
[1764302504533,3.86,139.78,139.73,0.68]
[1764302504732,3.86,139.78,139.73,4.12194377]
[1764302504938,0.72,139.77,139.73,0.68]
[1764302505543,0.72,139.77,139.73,4.12194377]
[1764302505928,0.72,139.77,139.74,0.68]
[1764302507655,7.87461946,139.77,139.74,0.68]
[1764302508233,7.87461946,139.77,139.72,3.54194377]
[1764302508234,0.72,139.76,139.73,0.68]
[1764302509254,10.59656323,139.77,139.73,0.68]
[1764302509255,11.31656323,139.77,139.73,0.68]
[1764302509756,7.87461946,139.77,139.73,0.68]
[1764302514052,7.87461946,139.77,139.72,0.1]
[1764302514053,19.75080777,139.74,139.72,0.1]
[1764302514234,6.58194377,139.73,139.72,0.1]
[1764302514436,7.30194377,139.73,139.72,0.1]
[1764302514957,6.72830877,139.73,139.72,0.1]
[1764302515261,16.308864,139.74,139.72,0.1]
[1764302515262,16.308864,139.74,139.72,0.78]
[1764302515557,2.86769186,139.76,139.72,4.22194377]
[1764302515762,3.14,139.76,139.73,0.68]
[1764302516060,30.76555191,139.77,139.73,0.68]
[1764302516684,27.32360814,139.77,139.73,4.12194377]
[1764302516855,30.76555191,139.77,139.74,0.68]
[1764302517063,0.72,139.76,139.73,0.68]
[1764302517962,7.87527526,139.76,139.73,0.68]
[1764302519567,37.30228541,139.77,139.73,11.27843258]
[1764302519762,27.32357582,139.77,139.73,11.27843258]
[1764302519939,27.32357582,139.77,139.74,0.68]
[1764302520362,26.60357582,139.77,139.74,0.68]
[1764302520656,27.32357582,139.77,139.74,0.68]
[1764302520878,11.3170866,139.76,139.72,0.1]
[1764302521045,3.44194377,139.74,139.72,0.1]
[1764302521241,3.14,139.73,139.72,0.1]
[1764302521465,3.86,139.73,139.72,0.1]
[1764302523762,11.01665927,139.73,139.72,0.1]
[1764302528546,3.14,139.73,139.72,0.1]
[1764302528873,19.448864,139.74,139.72,0.78]
[1764302529067,20.168864,139.74,139.72,0.78]
[1764302529468,27.32509954,139.74,139.72,0.78]
[1764302531053,26.60509954,139.74,139.72,0.78]
[1764302534550,23.46509954,139.74,139.72,0.78]
[1764302534757,27.31509954,139.74,139.72,0.1]
[1764302536169,26.60509954,139.74,139.72,0.8]
[1764302537078,19.448864,139.74,139.72,0.8]
[1764302537483,19.448864,139.74,139.72,4.24194377]
[1764302537994,10.69958643,139.76,139.73,3.44194377]
[1764302538286,22.61893152,139.78,139.74,3.44194377]
[1764302538287,3.14,139.77,139.74,3.44194377]
[1764302538475,3.14,139.77,139.74,4.14194377]
[1764302538669,3.14,139.77,139.75,0.7]
[1764302539172,11.00474361,139.77,139.75,0.7]
[1764302541176,11.00474361,139.77,139.74,4.14194377]
[1764302542069,11.00474361,139.77,139.74,0.7]
[1764302543790,13.73668738,139.77,139.72,0.1]
[1764302543995,4.15194377,139.76,139.72,0.8]
[1764302544197,6.58194377,139.75,139.72,0.1]
[1764302544363,7.29194377,139.75,139.72,0.1]
[1764302544690,0.71,139.74,139.72,0.1]
[1764302544885,3.14,139.73,139.72,0.1]
[1764302545278,3.85,139.73,139.72,0.1]
[1764302545875,3.14,139.73,139.72,0.1]
[1764302546573,19.448864,139.75,139.72,3.00498683]
[1764302546772,19.448864,139.75,139.73,0.7]
[1764302547989,3.14,139.75,139.73,2.90498683]
[1764302548388,3.14,139.75,139.74,0.7]
[1764302548968,3.14,139.75,139.74,2.90498683]
[1764302549776,3.14,139.75,139.74,0.7]
[1764302551189,3.14,139.75,139.72,9.46197015]
[1764302551396,3.14,139.75,139.73,0.7]
[1764302552201,3.14,139.75,139.73,2.90498683]
[1764302552380,3.14,139.75,139.74,0.7]
[1764302560910,24.17357271,139.77,139.74,0.7]
[1764302561095,3.14,139.76,139.74,2.90498683]
[1764302561405,16.308864,139.79,139.75,2.20498683]
[1764302561598,17.88148032,139.81,139.75,0.66]
[1764302561599,3.14,139.78,139.75,0.66]
[1764302561802,3.14,139.79,139.77,2.20498683]
[1764302562003,3.14,139.81,139.78,2.20498683]
[1764302562189,3.14,139.81,139.79,2.20498683]
[1764302562599,3.14,139.81,139.79,10.01856116]
[1764302563100,3.14,139.81,139.79,2.86498683]
[1764302563410,3.8,139.81,139.79,2.20498683]
[1764302565283,3.14,139.81,139.79,9.35847267]
[1764302565486,3.14,139.81,139.8,0.66]
[1764302565690,3.14,139.81,139.79,9.35847267]
[1764302565908,3.14,139.81,139.79,10.01847267]
[1764302570487,3.14,139.81,139.79,0.66]
[1764302570692,3.8,139.81,139.79,2.86498683]
[1764302571216,10.9521772,139.82,139.79,2.86498683]
[1764302571602,0.66,139.81,139.79,2.20498683]
[1764302571811,0.66,139.81,139.78,7.81393993]
[1764302572005,10.9521772,139.82,139.79,2.20498683]
[1764302572211,10.2921772,139.82,139.79,2.86498683]
[1764302572412,10.9521772,139.82,139.79,2.86498683]
[1764302574415,0.66,139.81,139.79,0.66]
[1764302574607,10.9521772,139.82,139.79,0.66]
[1764302575700,0.66,139.81,139.76,10.01993435]
[1764302575900,0.66,139.81,139.77,2.20498683]
[1764302576100,0.66,139.81,139.77,2.86498683]
[1764302576300,0.66,139.81,139.78,0.66]
[1764302576708,10.9521772,139.82,139.78,2.86498683]
[1764302577121,10.9521772,139.82,139.79,0.66]
[1764302581022,0.66,139.81,139.78,7.81409761]
[1764302581225,0.66,139.81,139.78,0.66]
[1764302582626,7.8126324,139.81,139.78,0.66]
[1764302583415,0.66,139.8,139.77,7.15426293]
[1764302583610,0.66,139.8,139.77,7.81426293]
[1764302583815,7.1526324,139.81,139.78,0.66]
[1764302584021,7.8126324,139.81,139.78,0.66]
[1764302591538,10.29246158,139.82,139.78,0.66]
[1764302591714,10.97246158,139.82,139.78,0.66]
[1764302592107,17.87948082,139.83,139.78,0.66]
[1764302592108,7.15124855,139.84,139.8,2.20498683]
[1764302592408,3.14,139.83,139.8,2.20498683]
[1764302592628,3.14,139.83,139.81,0.67]
[1764302594022,3.14,139.83,139.81,2.87498683]
[1764302594345,19.23385083,139.82,139.76,0.67]
[1764302594541,2.20498683,139.81,139.76,0.67]
[1764302594719,3.14,139.8,139.76,0.67]
[1764302595039,6.06498683,139.8,139.76,0.67]
[1764302595237,0.72,139.79,139.75,7.82547961]
[1764302595528,0.72,139.79,139.76,0.67]
[1764302596318,10.07902034,139.79,139.74,7.1559766]
[1764302596623,0.72,139.78,139.74,7.8259766]
[1764302596825,0.72,139.78,139.74,7.1559766]
[1764302597124,0.72,139.78,139.75,0.67]
[1764302599634,0.72,139.78,139.75,7.82561849]
[1764302600017,0.72,139.78,139.76,0.67]
[1764302601545,7.87410271,139.78,139.75,7.82561849]
[1764302601839,7.87410271,139.78,139.75,0.67]
[1764302605934,16.308864,139.79,139.75,7.82552659]
[1764302606247,19.23385083,139.79,139.75,7.82552659]
[1764302606429,19.23385083,139.79,139.76,0.67]
[1764302606763,3.14,139.79,139.76,4.11350026]
[1764302607139,3.14,139.79,139.77,0.67]
[1764302610147,7.15317829,139.8,139.77,0.67]
[1764302610346,7.87317829,139.8,139.77,0.67]
[1764302619653,7.15317829,139.8,139.77,0.67]
[1764302619862,30.04502129,139.81,139.77,7.82451817]
[1764302620050,30.76502129,139.81,139.77,7.82451817]
[1764302620359,0.72,139.8,139.77,0.67]
[1764302620559,4.16350026,139.8,139.77,0.67]
[1764302621667,7.87310062,139.8,139.77,0.67]
[1764302622366,0.72,139.8,139.77,7.82459765]
[1764302622735,19.448864,139.81,139.78,0.7]
[1764302623048,27.32148531,139.81,139.78,0.7]
[1764302623660,26.60148531,139.81,139.78,0.7]
[1764302623854,0.72,139.8,139.78,0.7]
[1764302625071,30.76498557,139.81,139.78,0.7]
[1764302626871,19.448864,139.81,139.78,7.85396124]
[1764302627244,19.448864,139.81,139.79,0.7]
[1764302627448,20.168864,139.81,139.78,0.7]
[1764302630170,20.168864,139.81,139.78,7.85394314]
[1764302630346,20.168864,139.81,139.79,0.7]
[1764302635668,17.028864,139.81,139.79,0.7]
[1764302635866,19.448864,139.81,139.79,0.7]
[1764302636047,20.168864,139.81,139.79,0.7]
[1764302636808,24.63750275,139.85,139.79,11.29694895]
[1764302636948,0.72,139.83,139.79,11.29694895]
[1764302637264,0.72,139.83,139.79,7.85344869]
[1764302637470,4.16350026,139.83,139.79,0.7]
[1764302637671,0.72,139.83,139.79,4.14350026]
[1764302637974,0.72,139.82,139.79,11.2970761]
[1764302638268,0.72,139.82,139.8,0.7]
[1764302638768,0.72,139.82,139.79,11.2970761]
[1764302640368,0.72,139.82,139.79,10.5970761]
[1764302640667,0.72,139.82,139.8,7.85307019]
[1764302641249,0.72,139.82,139.8,0.7]
[1764302641669,0.72,139.82,139.79,11.29687278]
[1764302641969,19.448864,139.81,139.75,4.14350026]
[1764302642174,3.44350026,139.8,139.75,4.14350026]
[1764302642470,4.16350026,139.8,139.76,0.7]
[1764302642672,0.72,139.79,139.76,7.85511303]
[1764302643177,0.72,139.79,139.77,0.7]
[1764302643383,0.72,139.8,139.77,0.7]
[1764302643560,30.04508078,139.81,139.77,0.7]
[1764302643874,0.72,139.79,139.77,0.7]
[1764302644376,0.72,139.8,139.77,0.7]
[1764302647453,7.87312426,139.8,139.77,0.7]
[1764302648175,7.15312426,139.8,139.77,4.14350026]
[1764302648380,7.87312426,139.8,139.77,4.14350026]
[1764302650462,23.4614692,139.81,139.78,0.66]
[1764302650657,3.14,139.8,139.78,0.66]
[1764302650877,3.86,139.8,139.77,11.25781188]
[1764302652285,3.86,139.8,139.77,7.81431162]
[1764302656592,11.01309063,139.8,139.78,0.69]
[1764302658180,11.01309063,139.8,139.77,0.69]
[1764302666209,48.00529884,139.86,139.79,3.44350026]
[1764302666210,22.37352795,139.85,139.79,3.44350026]
[1764302666506,22.37352795,139.85,139.8,3.44350026]
[1764302666507,3.14,139.83,139.8,3.44350026]
[1764302666885,3.79,139.83,139.8,4.13350026]
[1764302667299,0.65,139.82,139.8,4.13350026]
[1764302667684,0.65,139.82,139.78,4.13350026]
[1764302668078,0.65,139.82,139.78,10.59741435]
[1764302668295,0.65,139.82,139.79,0.69]
[1764302668497,11.24582875,139.82,139.77,11.28799712]
[1764302668789,10.00568212,139.82,139.77,10.04785049]
[1764302668994,0.65,139.81,139.78,0.69]
[1764302669206,3.14,139.8,139.78,0.69]
[1764302670895,3.14,139.8,139.76,2.20335363]
[1764302671102,0.65,139.79,139.77,0.69]
[1764302671302,0.65,139.79,139.76,2.89335363]
[1764302671687,16.308864,139.82,139.78,2.20335363]
[1764302671688,19.448864,139.82,139.78,2.20335363]
[1764302672003,20.098864,139.82,139.79,2.20335363]
[1764302672201,27.25097624,139.82,139.79,2.20335363]
[1764302672403,27.25097624,139.82,139.79,2.89335363]
[1764302672580,26.60097624,139.82,139.79,2.89335363]
[1764302672789,0.65,139.81,139.79,2.89335363]
[1764302677210,0.65,139.81,139.79,0.69]
[1764302681014,7.80279511,139.81,139.79,0.69]
[1764302682109,0.7,139.85,139.8,2.20335363]
[1764302682404,3.14,139.84,139.81,2.20335363]
[1764302682807,3.14,139.84,139.82,0.72]
[1764302683016,3.84,139.84,139.82,0.72]
[1764302685214,3.84,139.84,139.82,2.92335363]
[1764302685417,3.84,139.84,139.82,0.72]
[1764302685792,3.84,139.84,139.81,2.92335363]
[1764302686010,3.84,139.83,139.81,2.92335363]
[1764302686212,3.84,139.83,139.81,2.20335363]
[1764302686413,24.15906263,139.86,139.82,2.92335363]
[1764302686604,3.84,139.85,139.82,2.92335363]
[1764302687119,0.7,139.84,139.82,0.72]
[1764302687316,0.7,139.84,139.81,2.92335363]
[1764302687500,0.7,139.84,139.82,0.72]
[1764302688920,10.99083038,139.85,139.82,0.72]
[1764302693618,10.29083038,139.85,139.82,0.72]
[1764302693808,10.99083038,139.85,139.82,0.72]
[1764302694814,3.14,139.85,139.82,10.07513372]
[1764302695006,3.14,139.85,139.83,2.20335363]
[1764302695209,3.14,139.85,139.83,2.92335363]
[1764302695398,3.14,139.85,139.83,0.72]
[1764302700825,3.84,139.85,139.83,0.72]
[1764302706630,7.15016372,139.86,139.83,0.72]
[1764302706815,3.14,139.85,139.83,0.72]
[1764302708639,7.85016372,139.86,139.83,0.72]
[1764302708806,3.14,139.85,139.83,0.72]
[1764302710531,2.92335363,139.84,139.8,0.72]
[1764302710702,3.14,139.83,139.8,0.72]
[1764302710910,3.86,139.83,139.8,0.72]
[1764302712238,11.01195621,139.83,139.8,0.72]
[1764302712421,0.72,139.82,139.8,0.72]
[1764302713231,2.92335363,139.82,139.78,0.72]
[1764302713410,2.92335363,139.82,139.76,9.35831635]
[1764302713610,2.92335363,139.82,139.79,0.72]
[1764302714124,7.87213545,139.82,139.79,0.72]
[1764302717634,7.87213545,139.82,139.77,0.71]
[1764302717635,2.90335363,139.81,139.77,0.71]
[1764302717826,3.14,139.8,139.77,0.71]
[1764302718028,3.84,139.8,139.77,0.71]
[1764302718230,3.14,139.8,139.77,0.71]
[1764302719234,3.14,139.8,139.77,7.86454975]
[1764302719418,0.7,139.79,139.75,2.20335363]
[1764302719618,0.7,139.79,139.76,0.71]
[1764302720636,0.7,139.79,139.76,7.86510318]
[1764302721738,3.14,139.8,139.77,0.71]
[1764302721944,2.20335363,139.85,139.79,2.20335363]
[1764302722144,3.14,139.84,139.81,2.20335363]
[1764302722521,3.14,139.84,139.82,0.71]
[1764302722932,3.84,139.84,139.82,0.71]
[1764302723317,3.84,139.84,139.81,2.20335363]
[1764302723519,20.148864,139.84,139.81,2.91335363]
[1764302723822,19.448864,139.84,139.82,0.71]
[1764302724344,16.308864,139.84,139.82,0.71]
[1764302724528,7.15014885,139.86,139.82,2.91335363]
[1764302724726,3.14,139.85,139.83,2.20335363]
[1764302725045,3.14,139.85,139.83,2.91335363]
[1764302725246,3.14,139.85,139.84,0.71]
[1764302730649,3.14,139.85,139.83,4.14970948]
[1764302731039,3.14,139.85,139.84,0.71]
[1764302731245,3.43970948,139.91,139.84,4.14970948]
[1764302731559,3.43970948,139.91,139.86,3.43970948]
[1764302731560,20.148864,139.9,139.86,3.43970948]
[1764302731724,23.58857348,139.9,139.83,7.15198086]
[1764302731929,0.7,139.89,139.85,0.71]
[1764302732362,7.84851675,139.89,139.85,0.71]
[1764302732534,7.84851675,139.89,139.85,4.14970948]
[1764302733045,0.7,139.88,139.85,0.71]
[1764302733551,7.84851675,139.89,139.86,0.71]
[1764302734400,0.7,139.89,139.86,0.71]
[1764302734743,0.7,139.89,139.86,7.85996806]
[1764302735244,7.84853638,139.89,139.86,0.71]
[1764302736041,0.7,139.89,139.86,7.85997047]
[1764302736254,7.84851062,139.89,139.86,0.71]
[1764302737458,0.7,139.88,139.85,7.15036658]
[1764302737636,0.7,139.88,139.85,7.86036658]
[1764302737836,7.84851062,139.89,139.86,0.71]
[1764302738037,7.14851062,139.89,139.85,10.59007606]
[1764302738244,0.7,139.88,139.85,11.30007606]
[1764302738461,7.84851062,139.89,139.86,0.71]
[1764302738764,0.7,139.88,139.85,11.30007606]
[1764302738968,3.14,139.87,139.85,7.86036658]
[1764302739868,3.14,139.87,139.85,0.71]
[1764302741454,3.83,139.87,139.85,0.71]
[1764302741650,0.69,139.86,139.82,25.7299808]
[1764302741859,0.69,139.86,139.83,0.7]
[1764302742668,0.69,139.86,139.83,4.13970948]
[1764302743569,3.14,139.87,139.84,4.13970948]
[1764302743743,3.83,139.87,139.84,4.13970948]
[1764302744149,3.14,139.87,139.84,3.43970948]
[1764302744353,3.14,139.87,139.85,0.7]
[1764302745147,3.14,139.87,139.85,4.13970948]
[1764302745643,3.14,139.87,139.86,0.7]
[1764302747170,3.14,139.87,139.85,3.43970948]
[1764302747472,3.14,139.87,139.85,4.13970948]
[1764302748051,0.69,139.86,139.83,0.7]
[1764302748372,10.97957127,139.87,139.84,4.13970948]
[1764302748670,10.97957127,139.87,139.84,0.7]
[1764302748870,10.97957127,139.87,139.85,0.7]
[1764302749969,7.14957127,139.87,139.85,0.7]
[1764302750184,3.14,139.86,139.85,0.7]
[1764302751862,3.83,139.86,139.83,10.59121402]
[1764302752064,3.83,139.86,139.83,11.29121402]
[1764302752877,3.83,139.86,139.84,0.7]
[1764302753373,3.14,139.86,139.84,0.7]
[1764302753765,3.83,139.86,139.84,0.7]
[1764302756381,3.83,139.86,139.84,4.13970948]
[1764302762566,3.14,139.86,139.84,4.13970948]
[1764302763773,3.83,139.86,139.84,4.13970948]
[1764302764590,3.14,139.86,139.84,4.13970948]
[1764302765881,3.83,139.86,139.84,4.13970948]
[1764302766264,3.14,139.86,139.84,4.13970948]
[1764302768689,3.14,139.86,139.85,0.7]
[1764302768895,0.69,139.89,139.85,4.13970948]
[1764302769067,3.14,139.88,139.86,3.43970948]
[1764302769272,3.14,139.88,139.86,4.13970948]
[1764302769576,3.14,139.88,139.87,0.7]
[1764302771502,3.14,139.88,139.87,4.13970948]
[1764302772697,24.16705102,139.9,139.87,4.13970948]
[1764302772900,27.30705102,139.9,139.87,4.13970948]
[1764302773112,27.30705102,139.9,139.88,0.66]
[1764302774277,27.30705102,139.9,139.87,3.43970948]
[1764302774479,3.14,139.9,139.88,4.09970948]
[1764302774999,3.14,139.9,139.89,0.66]
[1764302775692,3.14,139.9,139.88,3.43970948]
[1764302775897,3.14,139.9,139.89,0.66]
[1764302777095,3.14,139.9,139.88,11.27852057]
[1764302777393,3.14,139.9,139.89,0.69]
[1764302777789,3.14,139.9,139.89,4.12970948]
[1764302778590,3.14,139.9,139.89,11.27818328]
[1764302778790,3.14,139.9,139.88,10.58851759]
[1764302778999,3.14,139.9,139.88,11.27851759]
[1764302779192,3.14,139.9,139.89,0.69]
[1764302779778,3.14,139.9,139.88,11.27851759]
[1764302783096,0.67,139.89,139.85,7.83699149]
[1764302783310,0.67,139.89,139.85,4.12970948]
[1764302783684,0.67,139.89,139.85,10.59015557]
[1764302783901,0.67,139.89,139.86,0.69]
[1764302785988,7.8185273,139.89,139.86,0.69]
[1764302786488,0.67,139.88,139.85,4.12970948]
[1764302787090,0.67,139.88,139.85,11.28007625]
[1764302787396,0.67,139.88,139.85,4.12970948]
[1764302787588,7.8190436,139.88,139.85,4.12970948]
[1764302788412,7.8190436,139.88,139.84,11.28057685]
[1764302788413,3.81,139.87,139.84,11.28057685]
[1764302789812,3.81,139.87,139.82,11.28157126]
[1764302789813,0.67,139.86,139.82,11.28157126]
[1764302790005,3.14,139.87,139.85,3.43970948]
[1764302790394,3.14,139.87,139.85,4.12970948]
[1764302790597,3.14,139.87,139.85,2.89082797]
[1764302792489,3.81,139.87,139.84,2.89082797]
[1764302792813,10.95958986,139.87,139.84,2.89082797]
[1764302793024,0.67,139.86,139.83,2.89082797]
[1764302799804,0.67,139.86,139.84,0.69]
[1764302800216,10.28958986,139.87,139.84,0.69]
[1764302800421,10.94958986,139.87,139.84,0.69]
[1764302802719,0.66,139.86,139.83,9.35235404]
[1764302802900,0.66,139.86,139.83,10.03235404]
[1764302803623,0.66,139.86,139.84,0.68]
[1764302803916,10.94958986,139.87,139.84,0.68]
[1764302806227,10.94958986,139.87,139.84,2.88082797]
[1764302806805,10.28958986,139.87,139.85,0.68]
[1764302807105,20.108864,139.9,139.86,2.20082797]
[1764302807515,27.25701447,139.9,139.87,0.68]
[1764302807821,26.59701447,139.9,139.87,0.68]
[1764302807999,0.66,139.89,139.87,0.68]
[1764302808203,27.25701447,139.9,139.87,0.68]
[1764302808416,3.14,139.9,139.88,2.20082797]
[1764302808825,3.14,139.9,139.88,2.88082797]
[1764302809822,3.8,139.9,139.88,2.88082797]
[1764302810026,3.8,139.9,139.88,0.68]
[1764302811933,3.14,139.9,139.88,0.68]
[1764302812435,3.8,139.9,139.88,0.68]
[1764302813110,3.14,139.9,139.88,10.02976964]
[1764302813511,3.14,139.9,139.89,0.68]
[1764302814525,3.14,139.9,139.88,2.20082797]
[1764302814727,3.14,139.9,139.88,2.88082797]
[1764302817430,3.14,139.9,139.89,0.68]
[1764302817636,24.11587767,139.92,139.89,0.68]
[1764302817931,24.11587767,139.92,139.89,2.88082797]
[1764302817932,3.14,139.91,139.89,2.88082797]
[1764302818326,3.14,139.91,139.9,0.68]
[1764302819939,3.14,139.91,139.89,10.02929726]
[1764302821838,3.14,139.91,139.89,2.88082797]
[1764302822534,3.14,139.91,139.9,0.68]
[1764302823527,3.14,139.91,139.89,2.88082797]
[1764302823730,3.14,139.91,139.9,0.68]
[1764302823922,3.14,139.91,139.89,0.68]
[1764302824114,3.8,139.91,139.89,0.68]